lending/lending_fUSD_20260312
["ID","MTS","AMOUNT","RATE_DAILY","PERIOD"]
[408257171,1773325832116,-163.63826027,0.00014451,2]
[408257172,1773325832133,-250.0,0.00014451,2]
[408257173,1773325832151,-182.97485629,0.00014451,2]
[408257174,1773325832162,-117.02514371,0.00014451,2]
[408257175,1773325832171,-250.0,0.00014451,2]
[408257176,1773325832181,-166.66,0.00014451,2]
[408257177,1773325832190,-199.11454615,0.00014575,2]
[408257178,1773325832199,-1200.0,0.00014658,2]
[408257179,1773325832208,-180.0,0.00014658,2]
[408257180,1773325832217,-3240.0,0.00014659,2]
[408257181,1773325832226,-300.0,0.00014677,2]
[408257182,1773325832235,-300.0,0.00014677,2]
[408257183,1773325832244,-4000.0,0.00014679,2]
[408257184,1773325832254,-166.66,0.00014749,2]
[408257185,1773325832263,-199.11454615,0.00014798,2]
[408257186,1773325832272,-153.81091,0.00014862,7]
[408257187,1773325832281,-7588.25,0.00014862,2]
[408257188,1773325832290,-2442.73,0.00014862,2]
[408257189,1773325832299,-150.0,0.00014872,2]
[408257190,1773325832308,-500.0,0.00014873,2]
[408257191,1773325832317,-500.96706239,0.00014873,2]
[408257192,1773325832326,-500.0,0.00014873,2]
[408257193,1773325832335,-500.0,0.00014873,2]
[408257194,1773325832344,-500.0,0.00014873,2]
[408257195,1773325832353,-500.0,0.00014873,2]
[408257196,1773325832366,-500.94233433,0.00014873,2]
[408257197,1773325832375,-500.0,0.00014873,2]
[408257198,1773325832384,-500.0,0.00014873,2]
[408257199,1773325832394,-500.0,0.00014873,2]
[408257200,1773325832404,-235.5,0.00014873,2]
[408257201,1773325832414,-500.0,0.00014889,2]
[408257202,1773325832423,-500.0,0.00014889,2]
[408257203,1773325832433,-500.0,0.00014889,2]
[408257204,1773325832442,-500.0,0.00014889,2]
[408257205,1773325832451,-256.18724957,0.00014889,2]
[408257206,1773325832460,-500.0,0.00014889,2]
[408257207,1773325832470,-500.0,0.00014889,2]
[408257208,1773325832479,-500.0,0.00014889,2]
[408257209,1773325832488,-322.66597099,0.00014889,2]
[408257210,1773325832498,-500.0,0.00014889,2]
[408257211,1773325832507,-500.0,0.00014889,2]
[408257212,1773325832517,-500.0,0.00014889,2]
[408257213,1773325832527,-500.0,0.00014889,2]
[408257214,1773325832536,-500.0,0.00014889,2]
[408257215,1773325832544,-500.0,0.00014889,2]
[408257216,1773325832554,-500.0,0.00014889,2]
[408257217,1773325832563,-500.0,0.00014889,2]
[408257218,1773325832572,-500.0,0.00014889,2]
[408257219,1773325832581,-151.0,0.00014889,2]
[408257220,1773325832590,-500.0,0.00014889,2]
[408257221,1773325832600,-151.0,0.00014889,2]
[408257222,1773325832609,-500.0,0.00014889,2]
[408257223,1773325832619,-151.0,0.00014889,2]
[408257224,1773325832627,-500.0,0.00014889,2]
[408257225,1773325832636,-151.0,0.00014889,2]
[408257226,1773325832645,-151.0,0.00014889,2]
[408257227,1773325832654,-151.0,0.00014889,2]
[408257228,1773325832664,-151.0,0.00014889,2]
[408257229,1773325832673,-151.0,0.00014889,2]
[408257230,1773325832683,-151.0,0.00014889,2]
[408257231,1773325832692,-151.0,0.00014889,2]
[408257232,1773325832701,-151.0,0.00014889,2]
[408257233,1773325832710,-151.0,0.00014889,2]
[408257234,1773325832719,-151.0,0.00014889,2]
[408257235,1773325832728,-500.0,0.0001489,2]
[408257236,1773325832737,-150.99,0.00014897,2]
[408257237,1773325832751,-1000.0,0.00014897,2]
[408257238,1773325832760,-1852.42,0.00014898,2]
[408257239,1773325832770,-1459.08,0.00014898,2]
[408257240,1773325832779,-5930.91,0.00014898,2]
[408257243,1773325832789,-8441.55,0.00014898,2]
[408257245,1773325832798,-150.99,0.00014898,2]
[408257247,1773325832807,-318.12,0.00014898,2]
[408257248,1773325832816,-2054.16,0.00014898,2]
[408257250,1773325832825,-9466.97,0.00014898,2]
[408257252,1773325832834,-14677.18,0.00014898,2]
[408257254,1773325832843,-299.99,0.00014898,2]
[408257256,1773325832852,-22520.52,0.00014898,2]
[408257258,1773325832861,-10927.42,0.00014898,2]
[408257260,1773325832871,-499.99,0.00014898,2]
[408257263,1773325832881,-999.99,0.00014898,2]
[408257265,1773325832890,-15606.8641701,0.00014898,2]
[408257267,1773325832902,-3904.47098206,0.00014898,2]
[408257271,1773325832930,-603.84235597,0.00014898,2]
[408257272,1773325832941,-25666.38249187,0.00014898,2]
[408257273,1773325832950,-9999.99,0.00014898,2]
[408257274,1773325832963,-170.06447274,0.000149,2]
[408257275,1773325832972,-250.0,0.00015,2]
[408257276,1773325832982,-500.0,0.00015,30]
[408257277,1773325832991,-500.0,0.00015,30]
[408257278,1773325833000,-500.0,0.00015,30]
[408257279,1773325833009,-500.0,0.00015,30]
[408257280,1773325833019,-500.0,0.00015,30]
[408257281,1773325833028,-4000.0,0.00015037,2]
[408257282,1773325833037,-166.66,0.00015047,2]
[408257283,1773325833046,-492.24177034,0.00015084,2]
[408257284,1773325833055,-429.0,0.00015084,2]
[408257285,1773325833065,-235.5,0.00015147,2]
[408257286,1773325833074,-460.08259764,0.00015206,2]
[408257287,1773325833083,-347.0,0.00015206,2]
[408257288,1773325833093,-166.66,0.00015345,2]
[408257289,1773325833102,-4000.0,0.00015395,2]
[408257290,1773325833112,-500.0,0.00015421,2]
[408257291,1773325833122,-235.5,0.00015421,2]
[408257292,1773325833134,-566.07810101,0.0001544,2]
[408257293,1773325833143,-1459.08,0.00015643,2]
[408257294,1773325833153,-166.66,0.00015643,2]
[408257295,1773325833162,-235.5,0.00015695,2]
[408257296,1773325833171,-4000.0,0.00015753,2]
[408257297,1773325833181,-22763.3936,0.00015781,2]
[408257298,1773325833190,-240.0,0.00015793,2]
[408257299,1773325833201,-300.0,0.00015896,2]
[408257300,1773325833210,-5000.0,0.00015896,2]
[408257301,1773325833220,-500.0,0.00015896,2]
[408257302,1773325833229,-300.38922709,0.00015896,2]
[408257303,1773325833239,-270.62653071,0.00015896,2]
[408257304,1773325833247,-625.10181164,0.00015896,2]
[408257305,1773325833257,-5000.0,0.00015896,2]
[408257306,1773325833266,-250.0,0.00015896,2]
[408257307,1773325833276,-600.0,0.00015896,2]
[408257308,1773325833285,-600.0,0.00015896,2]
[408257309,1773325833295,-432.5310264,0.00015896,2]
[408257310,1773325833304,-300.0,0.00015896,2]
[408257311,1773325833314,-1887.0,0.0001591,2]
[408257312,1773325833323,-191.0,0.00015942,2]
[408257313,1773325833334,-235.54,0.00015968,2]
[408257314,1773325833343,-255.0,0.00016002,2]
[408257315,1773325833352,-420.0,0.00016068,2]
[408257316,1773325833362,-9999.99,0.00016116,2]
[408257317,1773325833372,-1680.0,0.00016124,2]
[408257318,1773325833381,-1249.0,0.00016125,2]
[408257319,1773325833391,-155.0,0.00016125,2]
[408257320,1773325833401,-1459.08,0.00016388,2]
[408257321,1773325833411,-7412.76379802,0.00016405,2]
[408257322,1773325833421,-8990.2139558,0.00016473,2]
[408257323,1773325833433,-259.99705912,0.00016473,2]
[408257324,1773325833444,-569.69151072,0.00016473,2]
[408257325,1773325833453,-258.86808405,0.00016473,2]
[408257326,1773325833463,-499.10862884,0.00016497,2]
[408257327,1773325833472,-500.0,0.00016505,2]
[408257328,1773325833482,-500.0,0.00016505,2]
[408257329,1773325833492,-500.0,0.00016505,2]
[408257330,1773325833502,-500.0,0.00016505,2]
[408257331,1773325833512,-500.0,0.00016505,2]
[408257332,1773325833524,-500.0,0.00016505,2]
[408257333,1773325833534,-500.0,0.00016505,2]
[408257334,1773325833545,-500.0,0.00016505,2]
[408257335,1773325833554,-500.0,0.00016505,2]
[408257336,1773325833564,-500.0,0.00016505,2]
[408257337,1773325833573,-500.0,0.00016505,2]
[408257338,1773325833583,-500.0,0.00016505,2]
[408257339,1773325833593,-500.0,0.00016505,2]
[408257340,1773325833603,-500.0,0.00016505,2]
[408257341,1773325833612,-500.0,0.00016505,2]
[408257342,1773325833621,-500.0,0.00016505,2]
[408257343,1773325833631,-500.0,0.00016505,2]
[408257344,1773325833640,-500.0,0.00016505,2]
[408257345,1773325833649,-500.0,0.00016505,2]
[408257346,1773325833659,-500.0,0.00016505,2]
[408257347,1773325833670,-500.0,0.00016505,2]
[408257348,1773325833680,-500.0,0.00016505,2]
[408257349,1773325833690,-500.0,0.00016505,2]
[408257350,1773325833700,-500.0,0.00016505,2]
[408257351,1773325833709,-500.0,0.00016505,2]
[408257352,1773325833719,-500.0,0.00016505,2]
[408257353,1773325833728,-500.0,0.00016505,2]
[408257354,1773325833738,-500.0,0.00016505,2]
[408257355,1773325833747,-500.0,0.00016505,2]
[408257356,1773325833757,-500.0,0.00016505,2]
[408257357,1773325833766,-500.0,0.00016505,2]
[408257358,1773325833775,-500.0,0.00016505,2]
[408257359,1773325833785,-500.0,0.00016505,2]
[408257360,1773325833794,-500.0,0.00016505,2]
[408257361,1773325833804,-500.0,0.00016505,2]
[408257362,1773325833814,-500.0,0.00016505,2]
[408257363,1773325833823,-500.0,0.00016505,2]
[408257364,1773325833833,-500.0,0.00016505,2]
[408257365,1773325833843,-500.0,0.00016505,2]
[408257366,1773325833852,-500.0,0.00016505,2]
[408257367,1773325833861,-500.0,0.00016505,2]
[408257368,1773325833871,-500.0,0.00016505,2]
[408257369,1773325833880,-500.0,0.00016505,2]
[408257370,1773325833890,-500.0,0.00016505,2]
[408257371,1773325833899,-377.02250022,0.00016505,2]
[408257372,1773325833913,-500.0,0.00016505,2]
[408257373,1773325833923,-500.0,0.00016505,2]
[408257374,1773325833932,-206.75720364,0.00016506,2]
[408257375,1773325833942,-403.61836133,0.00016506,2]
[408257376,1773325833953,-500.0,0.00016506,2]
[408257377,1773325833964,-245.98142573,0.00016506,2]
[408257378,1773325833973,-129462.85114332,0.00016507,2]
[408257379,1773325833986,-13386.25327849,0.00016507,2]
[408257380,1773325833998,-12690.05828301,0.00016507,2]
[408257381,1773325834009,-478.50807902,0.00016507,2]
[408257382,1773325834021,-201948.21701517,0.00016507,2]
[408257384,1773325837656,-6550.65086444,0.00016507,2]
[408257391,1773325840157,-611.935,0.00016507,2]
[408257392,1773325840217,-705.32,0.00016507,2]
[408257393,1773325840442,-2134166.20633655,0.00016507,2]
[408257394,1773325840452,-281.78993835,0.00016573,2]
[408257395,1773325840462,-328.47473321,0.00016573,2]
[408257396,1773325840471,-14835.28,0.00016607,2]
[408257397,1773325840481,-11427.58865983,0.0001661,2]
[408257398,1773325840491,-241.22,0.0001671,2]
[408257399,1773325840500,-166.74,0.00016712,2]
[408257401,1773325840510,-173.79,0.00016776,2]
[408257402,1773325840520,-32942.6924,0.00016898,2]
[408257403,1773325840530,-1000.0,0.00016898,2]
[408257404,1773325840539,-13682.15,0.00016922,2]
[408257405,1773325840548,-29999.99,0.00016922,2]
[408257406,1773325840558,-9999.99,0.00016922,2]
[408257408,1773325840567,-373.9986442,0.00016989,2]
[408257409,1773325840576,-300.0,0.00017,2]
[408257410,1773325840585,-507.0,0.00017,2]
[408257411,1773325840595,-1459.08,0.00017133,2]
[408257412,1773325840604,-433.0,0.00017221,2]
[408257413,1773325840613,-213.0,0.00017323,2]
[408257414,1773325840622,-216.24219,0.00017391,2]
[408257415,1773325840631,-8990.21395576,0.00017398,2]
[408257416,1773325840641,-213.0,0.0001746,2]
[408257417,1773325840650,-587.0,0.00017592,2]
[408257418,1773325840659,-150.0,0.00017644,2]
[408257419,1773325840669,-150.20209622,0.00017644,2]
[408257420,1773325840679,-500.0,0.00017644,2]
[408257421,1773325840688,-150.0,0.00017699,2]
[408257422,1773325840697,-500.0,0.00017699,2]
[408257423,1773325840707,-213.0,0.00017734,2]
[408257424,1773325840884,-2351.0,0.00017736,2]
[408257425,1773325840898,-150.0,0.00017754,2]
[408257426,1773325840907,-500.0,0.00017754,2]
[408257427,1773325840916,-150.0,0.00017808,2]
[408257428,1773325840925,-800.0,0.00017808,2]
[408257429,1773325840934,-218.76094671,0.00017808,2]
[408257430,1773325840944,-596.68097798,0.00017808,2]
[408257431,1773325840954,-150.0,0.00017863,2]
[408257432,1773325840966,-213.0,0.00017871,2]
[408257433,1773325840975,-1459.08,0.00017878,2]
[408257434,1773325840984,-150.0,0.00017918,2]
[408257435,1773325840995,-150.0,0.00017972,2]
[408257436,1773325841004,-153.88,0.00017994,2]
[408257437,1773325841013,-153.88,0.00017994,2]
[408257438,1773325841023,-153.88,0.00017994,2]
[408257439,1773325841033,-153.88,0.00017994,2]
[408257440,1773325841042,-153.88,0.00017994,2]
[408257441,1773325841051,-153.88,0.00017994,2]
[408257442,1773325841060,-250.0,0.00018022,2]
[408257443,1773325841069,-150.0,0.00018027,3]
[408257444,1773325841078,-150.0,0.00018027,3]
[408257445,1773325841087,-195.47785461,0.00018027,3]
[408257446,1773325841096,-254.90199074,0.00018027,2]
[408257447,1773325841105,-878.0,0.00018156,2]
[408257448,1773325841114,-8990.21395576,0.00018323,2]
[408257449,1773325841123,-88537.23,0.00018356,2]
[408257450,1773325841133,-878.0,0.0001843,2]
[408257451,1773325841142,-151.0,0.000185,5]
[408257452,1773325841151,-736.0,0.0001853,2]
[408257453,1773325841159,-878.0,0.00018704,2]
[408257454,1773325841170,-1600.9737091,0.00018904,2]
[408257455,1773325841179,-160.0,0.0001892,2]
[408257456,1773325841188,-500.0,0.0001893,3]
[408257457,1773325841197,-150.0,0.0001893,3]
[408257458,1773325841206,-175.79642435,0.0001893,3]
[408257459,1773325841215,-1000.0,0.0001897,30]
[408257460,1773325841224,-179.51,0.00018978,2]
[408257461,1773325841233,-350.0,0.00019,2]
[408257462,1773325841242,-500.0,0.00019025,2]
[408257463,1773325841251,-500.0,0.00019025,2]
[408257464,1773325841261,-500.0,0.00019025,2]
[408257465,1773325841270,-500.0,0.00019025,2]
[408257466,1773325841279,-500.0,0.00019025,2]
[408257467,1773325841288,-500.0,0.00019025,2]
[408257468,1773325841298,-500.0,0.00019025,2]
[408257469,1773325841308,-340987.3953432,0.00019026,2]
[408257470,1773325841317,-18723.4799608,0.00019026,2]
[408257471,1773325841326,-500.0,0.00019073,2]
[408257472,1773325841335,-2954.42978653,0.000191,2]
[408257473,1773325841344,-500.0,0.00019178,2]
[408257474,1773325841353,-10000.0,0.0001919,2]
[408257475,1773325841362,-8990.21395576,0.00019249,2]
[408257476,1773325841371,-823.0,0.0001926,2]
[408257477,1773325841380,-151.0,0.00019287,2]
[408257478,1773325841389,-151.0,0.00019287,2]
[408257479,1773325841400,-539.98986878,0.00019289,2]
[408257480,1773325841409,-500.0,0.00019289,2]
[408257481,1773325841420,-500.0,0.00019289,2]
[408257482,1773325841430,-500.0,0.00019289,2]
[408257483,1773325841439,-500.0,0.00019289,2]
[408257484,1773325841448,-200.0,0.0001929,2]
[408257485,1773325841458,-150.0,0.0001929,2]
[408257486,1773325841467,-259.21251933,0.0001929,2]
[408257487,1773325841476,-166.66,0.000193,2]
[408257488,1773325841485,-247.48115388,0.00019312,2]
[408257489,1773325841494,-608.89713279,0.000195,2]
[408257490,1773325841503,-160.80967078,0.000195,5]
[408257491,1773325841512,-3292.0,0.0001951,2]
[408257492,1773325841521,-150.0,0.00019518,5]
[408257493,1773325841531,-275.93335682,0.00019518,5]
[408257494,1773325841541,-500.0,0.00019555,2]
[408257495,1773325841552,-507.80320873,0.00019555,2]
[408257496,1773325841562,-500.0,0.00019555,2]
[408257497,1773325841572,-500.0,0.00019555,2]
[408257498,1773325841582,-500.0,0.00019555,2]
[408257499,1773325841591,-500.0,0.00019555,2]
[408257500,1773325841601,-499.99,0.000196,2]
[408257501,1773325841612,-279.05,0.000196,2]
[408257502,1773325841622,-759.0,0.00019623,2]
[408257503,1773325841631,-759.0,0.00019643,2]
[408257504,1773325841643,-759.0,0.00019651,2]
[408257505,1773325841652,-2834.0,0.0001968,2]
[408257506,1773325841662,-150.0,0.000198,30]
[408257507,1773325841673,-2000.0,0.000198,2]
[408257508,1773325841682,-759.0,0.00019807,2]
[408257509,1773325841691,-166.66,0.00019863,2]
[408257510,1773325841700,-507.0,0.00019864,4]
[408257511,1773325841710,-759.0,0.00019877,2]
[408257512,1773325841719,-250.0,0.0001989,2]
[408257513,1773325841728,-20000.0,0.000199,2]
[408257514,1773325841737,-202.50075004,0.000199,2]
[408257515,1773325841746,-2000.0,0.000199,2]
[408257516,1773325841756,-1252.0,0.00019928,2]
[408257517,1773325841766,-700.0,0.0001997,2]
[408257518,1773325841775,-1356.29105231,0.0001997,2]
[408257519,1773325841784,-759.0,0.00019971,2]
[408257520,1773325841793,-151.0,0.00019977,2]
[408257521,1773325841802,-114578.35677862,0.0001998,2]
[408257522,1773325841813,-499.10862884,0.0001999,2]
[408257523,1773325841824,-151.0,0.00019997,2]
[408257524,1773325841834,-300.0,0.00019999,2]
[408257525,1773325841844,-300.0,0.00019999,2]
[408257526,1773325841854,-500.0,0.00019999,2]
[408257527,1773325841865,-611.47589012,0.00019999,2]
[408257528,1773325841874,-558.0,0.0002,2]
[408257529,1773325841883,-1230023.84929738,0.0002,2]
[408257530,1773325841892,-5555.0,0.0002,30]
[408257531,1773325841902,-1796.11,0.0002,7]
[408257532,1773325841912,-250.0,0.0002,2]
[408257533,1773325841922,-759.0,0.00020101,2]
[408257534,1773325841931,-759.0,0.00020115,2]
[408257535,1773325841942,-759.0,0.00020116,2]
[408257536,1773325841952,-250.0,0.00020161,2]
[408257537,1773325841966,-759.0,0.00020166,2]
[408257538,1773325841978,-8990.21395576,0.00020174,2]
[408257539,1773325841988,-152.72,0.00020219,2]
[408257540,1773325841999,-153.56106976,0.00020229,2]
[408257541,1773325842009,-7412.76379798,0.00020335,2]
[408257542,1773325842019,-159.0,0.000204,120]
[408257543,1773325842031,-1600.0,0.00020485,2]
[408257544,1773325842041,-250.0,0.00020532,2]
[408257545,1773325842050,-158.06,0.00020548,2]
[408257546,1773325842059,-391.99,0.000206,2]
[408257547,1773325842068,-215.59,0.000206,2]
[408257548,1773325842078,-759.0,0.00020638,2]
[408257549,1773325842088,-759.0,0.00020654,2]
[408257550,1773325842097,-759.0,0.00020699,2]
[408257551,1773325842106,-500.5198783,0.00020816,2]
[408257552,1773325842116,-258.868084,0.0002083,2]
[408257553,1773325842125,-1665.23,0.00020858,2]
[408257554,1773325842134,-150.0,0.00020906,2]
[408257555,1773325842143,-249.192552,0.00020908,2]
[408257556,1773325842153,-759.0,0.00020936,2]
[408257557,1773325842164,-241.22,0.00020947,2]
[408257558,1773325842174,-400.0,0.00021,2]
[408257559,1773325842183,-759.0,0.00021001,2]
[408257560,1773325842193,-250.0,0.00021043,3]
[408257561,1773325842204,-1152.0,0.00021085,2]
[408257562,1773325842214,-1412.839717,0.00021087,7]
[408257563,1773325842224,-8990.21395576,0.00021099,2]
[408257564,1773325842234,-173.79,0.00021117,2]
[408257565,1773325842243,-759.0,0.00021122,2]
[408257566,1773325842252,-417.567943,0.00021178,7]
[408257567,1773325842262,-401.351915,0.00021178,7]
[408257568,1773325842271,-1414.726692,0.00021228,7]
[408257569,1773325842280,-8927.038309,0.00021228,7]
[408257570,1773325842289,-759.0,0.00021281,2]
[408257571,1773325842298,-152.72,0.00021283,2]
[408257572,1773325842308,-759.0,0.00021287,2]
[408257573,1773325842317,-759.0,0.00021367,2]
[408257574,1773325842326,-165.1294434,0.0002137,2]
[408257575,1773325842335,-759.0,0.00021389,2]
[408257576,1773325842344,-76084.5721315,0.00021436,2]
[408257577,1773325842353,-4177.7730822,0.00021436,2]
[408257578,1773325842362,-2014.0,0.00021445,2]
[408257579,1773325842370,-4609.0,0.00021461,2]
[408257580,1773325842382,-759.0,0.00021463,2]
[408257581,1773325842391,-153.56106976,0.00021494,2]
[408257582,1773325842400,-759.0,0.00021551,2]
[408257583,1773325842408,-759.0,0.00021555,2]
[408257584,1773325842418,-759.0,0.00021591,2]
[408257585,1773325842427,-759.0,0.00021604,2]
[408257586,1773325842436,-250.0,0.00021746,4]
[408257587,1773325842445,-500.0,0.00021863,2]
[408257588,1773325842454,-1000.0,0.00021886,2]
[408257589,1773325842463,-232.72,0.00021918,2]
[408257590,1773325842472,-500.0,0.00021918,2]
[408257591,1773325842481,-162.27323831,0.00021918,2]
[408257592,1773325842490,-236.17,0.00021967,30]
[408257593,1773325842499,-16976.7627645,0.00021973,2]
[408257594,1773325842507,-932.1871768,0.00021973,2]
[408257595,1773325842517,-326.97702629,0.00022007,2]
[408257596,1773325842526,-8990.21395576,0.00022024,2]
[408257598,1773325842535,-1000.0,0.0002216,2]
[408257600,1773325842544,-152.72,0.00022348,2]
[408257602,1773325842553,-1600.0,0.00022348,2]
[408257604,1773325842562,-1000.0,0.00022434,2]
[408257606,1773325842571,-1000.0,0.00022708,2]
[408257608,1773325842580,-250.0,0.00022711,4]
[408257610,1773325842589,-507.0,0.00022727,7]
[408257611,1773325842598,-153.56106976,0.00022758,2]
[408257613,1773325842608,-241.22,0.00022923,2]
[408257616,1773325842617,-8990.21395576,0.0002295,2]
[408257619,1773325842626,-1000.0,0.00022982,2]
[408257622,1773325842635,-450.0,0.00023,2]
[408257625,1773325842644,-1613.0,0.00023084,2]
[408257628,1773325842653,-173.79,0.00023134,2]
[408257631,1773325842662,-1000.0,0.00023256,2]
[408257632,1773325842672,-500.0,0.00023287,2]
[408257634,1773325842681,-232.72,0.0002336,2]
[408257635,1773325842690,-1000.0,0.0002353,2]
[408257637,1773325842699,-1280.0,0.00023563,2]
[408257639,1773325842708,-1213.0,0.00023563,2]
[408257641,1773325842716,-1018.978,0.00023563,2]
[408257643,1773325842726,-3507.0,0.00023563,2]
[408257645,1773325842734,-1343.0,0.00023563,2]
[408257647,1773325842743,-620.0,0.00023563,2]
[408257648,1773325842752,-1043.0,0.00023563,2]
[408257650,1773325842761,-6453.0,0.00023607,2]
[408257652,1773325842770,-216.0,0.00023618,2]
[408257654,1773325842779,-700.0,0.0002367,2]
[408257656,1773325842789,-391.99,0.0002369,2]
[408257657,1773325842798,-1000.0,0.00023804,2]
[408257658,1773325842807,-448.26,0.00023859,2]
[408257659,1773325842818,-8990.21395576,0.00023875,2]
[408257660,1773325842826,-153.56106976,0.00024022,2]
[408257661,1773325842834,-250.0,0.00024038,5]
[408257662,1773325842843,-448.26,0.00024057,2]
[408257663,1773325842851,-1999.0,0.00024078,2]
[408257664,1773325842860,-570.16,0.000242,2]
[408257665,1773325842868,-174.41796854,0.00024233,2]
[408257666,1773325842877,-448.26,0.00024256,2]
[408257667,1773325842885,-7412.76379798,0.00024265,2]
[408257668,1773325842894,-448.26,0.00024455,2]
[408257669,1773325842902,-150.0,0.00024568,7]
[408257670,1773325842910,-150.0,0.00024568,7]
[408257671,1773325842919,-150.0,0.00024568,7]
[408257672,1773325842928,-171.0,0.00024568,7]
[408257673,1773325842937,-150.0,0.00024651,2]
[408257674,1773325842945,-184.0,0.00024651,2]
[408257675,1773325842954,-448.26,0.00024654,2]
[408257676,1773325842965,-500.88877377,0.00024656,2]
[408257677,1773325842974,-2011.12773399,0.00024657,2]
[408257678,1773325842983,-1000.0,0.00024658,2]
[408257679,1773325842992,-150.0,0.00024658,2]
[408257680,1773325843002,-315.0,0.0002475,7]
[408257681,1773325843011,-8990.21395576,0.000248,2]
[408257682,1773325843019,-232.72,0.00024802,2]
[408257683,1773325843028,-150.33348315,0.00024816,7]
[408257684,1773325843040,-448.26,0.00024853,2]
[408257685,1773325843049,-2000.0,0.000249,2]
[408257686,1773325843058,-154.242032,0.000249,2]
[408257687,1773325843071,-151.0,0.000249,2]
[408257688,1773325843091,-151.0,0.000249,2]
[408257689,1773325843110,-151.0,0.000249,2]
[408257690,1773325843119,-194.179278,0.000249,2]
[408257691,1773325843129,-194.179278,0.000249,2]
[408257692,1773325843139,-194.179278,0.000249,2]
[408257693,1773325843153,-194.179278,0.000249,2]
[408257694,1773325843162,-151.0,0.000249,2]
[408257695,1773325843171,-265.244161,0.000249,2]
[408257696,1773325843180,-265.244161,0.000249,2]
[408257697,1773325843194,-265.244161,0.000249,2]
[408257698,1773325843203,-265.244161,0.000249,2]
[408257699,1773325843212,-386965.36415827,0.000249,3]
[408257717,1773325845579,-297.57786446,0.00016473,2]
[408257718,1773325845588,-224.75798083,0.000249,3]
[408257719,1773325845599,-4781.90663245,0.000249,3]
[408257720,1773325845640,-38037.58813945,0.000249,3]
[408257721,1773325845651,-627.00223504,0.000249,3]
[408257722,1773325845869,-23703.74585496,0.000249,3]
[408257723,1773325845879,-151.0,0.000249,2]
[408257724,1773325845888,-151.0,0.000249,2]
[408257725,1773325845898,-151.0,0.000249,2]
[408257726,1773325845907,-250.0,0.00025,7]
[408257727,1773325845918,-172.0,0.00025009,2]
[408257728,1773325845927,-9000.0,0.00025041,2]
[408257729,1773325845937,-8232.6885148,0.00025041,2]
[408257730,1773325845947,-250.0,0.00025041,2]
[408257731,1773325845961,-500.0,0.00025041,2]
[408257732,1773325845971,-738.47411659,0.00025041,2]
[408257733,1773325845981,-500.0,0.00025041,2]
[408257734,1773325845990,-250.0,0.00025041,2]
[408257736,1773325846001,-500.0,0.00025041,2]
[408257738,1773325846011,-250.0,0.00025041,2]
[408257739,1773325846019,-500.0,0.00025041,2]
[408257740,1773325846029,-372.58257451,0.00025041,2]
[408257741,1773325846039,-500.0,0.00025041,2]
[408257742,1773325846048,-500.0,0.00025041,2]
[408257743,1773325846058,-500.0,0.00025041,2]
[408257744,1773325846067,-1500.0,0.00025041,2]
[408257745,1773325846076,-500.0,0.00025041,2]
[408257746,1773325846086,-500.0,0.00025041,2]